[Event "44th Chess Olympiad Open 2022"]
[Site "Chennai"]
[Date "2022.08.05"]
[Round "7.38"]
[White "Cawdery, Daniel"]
[Black "Masango, Spencer"]
[Result "1/2-1/2"]
[ECO "C86"]
[WhiteElo "2417"]
[BlackElo "2170"]
[Annotator "ChessBase"]
[PlyCount "66"]
[EventDate "2022.07.29"]
[EventType "team-tourn"]
[EventCountry "IND"]
[SourceTitle "playchess.com"]
[Source "ChessBase"]
[SourceQuality "1"]
[WhiteTeam "South Africa"]
[BlackTeam "Zimbabwe"]
[WhiteTeamCountry "RSA"]
[BlackTeamCountry "ZIM"]
[TimeControl "40/5400+30:1800+30"]

1. e4 {[%emt 0:00:04]} e5 {[%emt 0:00:10]} 2. Nf3 {[%emt 0:00:14]} Nc6 {[%emt 0:00:12]} 3. Bb5 {[%emt 0:00:41]} a6 {[%emt 0:00:09]} 4. Ba4 {[%emt 0:00:05]} Nf6 {[%emt 0:00:16]} 5. Qe2 {[%emt 0:00:37]} Be7 {[%emt 0:02:54]} 6. O-O {[%emt 0:01:26]} b5 {[%emt 0:01:18]} 7. Bb3 {[%emt 0:00:06]} O-O {[%emt 0:00:16]} 8. c3 {[%emt 0:01:11]} Re8 {[%emt 0:02:35]} 9. a4 {[%emt 0:10:50]} b4 {[%emt 0:06:57]} 10. d4 {[%emt 0:06:06]} Na5 {[%emt 0:27:10]} 11. Bxf7+ {[%emt 0:14:44]} Kxf7 {[%emt 0:00:29]} 12. Ng5+ {[%emt 0:02:52]} Kg8 {[%emt 0:10:26]} 13. dxe5 {[%emt 0:00:36]} h6 {[%emt 0:10:18]} 14. exf6 {[%emt 0:02:18]} Bxf6 {[%emt 0:00:43]} 15. cxb4 {[%emt 0:00:14]} Nb7 {[%emt 0:05:07]} 16. Nf3 {[%emt 0:02:53]} d5 {[%emt 0:00:45]} 17. e5 {[%emt 0:00:19]} Bg4 {[%emt 0:00:53]} 18. Bf4 {[%emt 0:04:42]} Bxf3 {[%emt 0:05:08]} 19. Qxf3 {[%emt 0:00:03]} Bxe5 {[%emt 0:00:08]} 20. Bxe5 {[%emt 0:02:12]} Rxe5 {[%emt 0:00:09]} 21. Nc3 {[%emt 0:00:08]} Qd6 {[%emt 0:00:49]} 22. Rad1 {[%emt 0:00:44]} Rf8 {[%emt 0:03:57]} 23. Qd3 {[%emt 0:04:51]} Qxb4 {[%emt 0:03:35]} 24. Nxd5 {[%emt 0:01:57]} Qxa4 {[%emt 0:00:49]} 25. f4 {[%emt 0:04:18]} Ree8 {[%emt 0:03:52]} 26. f5 {[%emt 0:04:20]} Nc5 {[%emt 0:05:36]} 27. Qc3 {[%emt 0:03:32]} Ne4 {[%emt 0:01:55]} 28. Qxc7 {[%emt 0:00:19]} Rf7 {[%emt 0:00:50]} 29. Qf4 {[%emt 0:05:53]} Qb3 {[%emt 0:02:01]} 30. Rfe1 {[%emt 0:03:33]} Qc4 {[%emt 0:02:32]} 31. Ne3 {[%emt 0:05:16]} Qc5 {[%emt 0:00:32]} 32. Rd5 {[%emt 0:01:29]} Qb4 {[%emt 0:00:55]} 33. Re2 {[%emt 0:03:48]} Qb6 {[%emt 0:02:03]} 1/2-1/2

[Event "44th Chess Olympiad Open 2022"]
[Site "Chennai"]
[Date "2022.08.05"]
[Round "7.38"]
[White "Makoto, Rodwell"]
[Black "Solomon, Kenny"]
[Result "1/2-1/2"]
[ECO "D79"]
[WhiteElo "2346"]
[BlackElo "2355"]
[Annotator "TA"]
[PlyCount "22"]
[EventDate "2022.07.29"]
[EventType "team-tourn"]
[EventCountry "IND"]
[SourceTitle "playchess.com"]
[Source "ChessBase"]
[SourceQuality "1"]
[WhiteTeam "Zimbabwe"]
[BlackTeam "South Africa"]
[WhiteTeamCountry "ZIM"]
[BlackTeamCountry "RSA"]
[TimeControl "40/5400+30:1800+30"]

{[%evp 21,22,0,11]} 1. Nf3 {[%emt 0:01:50]} d5 {[%emt 0:00:14]} 2. g3 {[%emt 0:00:54]} g6 {[%emt 0:00:08]} 3. Bg2 {[%emt 0:01:05]} Bg7 {[%emt 0:00:07]} 4. d4 {[%emt 0:00:11]} Nf6 {[%emt 0:00:17]} 5. O-O {[%emt 0:00:38]} O-O {[%emt 0:00:10]} 6. c4 {[%emt 0:00:33]} c6 {[%emt 0:00:07]} 7. cxd5 {[%emt 0:01:21]} cxd5 {[%emt 0:02:42]} 8. Ne5 {[%emt 0:02:35] [#]} Nfd7 $146 {[%emt 0:01:27]} ({Predecessor:} 8... Ne4 9. Nd2 Nc6 10. Nxe4 dxe4 11. Nxc6 bxc6 12. Bxe4 Bh3 13. Re1 {½-½ (13) Matlakov,M (2674)-Giri,A (2773) Chess.com INT 2022}) 9. Nf3 {[%emt 0:03:38]} Nf6 {[%emt 0:01:38]} 10. Ne5 {[%emt 0:04:58]} Nfd7 {[%emt 0:01:21] 10...Ng4 is the modern continuation.} 11. Nf3 {[%emt 0:00:32]} Nf6 {[%emt 0:10:56]} 1/2-1/2

[Event "44th Chess Olympiad Open 2022"]
[Site "Chennai"]
[Date "2022.08.05"]
[Round "7.38"]
[White "Mhango, Banele"]
[Black "Zhemba, Jemusse"]
[Result "0-1"]
[ECO "E01"]
[WhiteElo "2238"]
[BlackElo "2162"]
[Annotator "NA RC"]
[PlyCount "120"]
[EventDate "2022.07.29"]
[EventType "team-tourn"]
[EventCountry "IND"]
[SourceTitle "playchess.com"]
[Source "ChessBase"]
[SourceQuality "1"]
[WhiteTeam "South Africa"]
[BlackTeam "Zimbabwe"]
[WhiteTeamCountry "RSA"]
[BlackTeamCountry "ZIM"]
[TimeControl "40/5400+30:1800+30"]

1. d4 {[%emt 0:00:04]} Nf6 {[%emt 0:00:16]} 2. c4 {[%emt 0:00:05]} e6 {[%emt 0:00:10]} 3. g3 {[%emt 0:00:32]} d5 {[%emt 0:00:17]} 4. Nf3 {[%emt 0:00:55]} Nc6 {[%emt 0:01:21]} 5. Bg2 {[%emt 0:03:34]} Bd6 {[%emt 0:01:32]} 6. O-O {[%emt 0:00:58]} h6 {[%emt 0:00:34]} 7. Nc3 {[%emt 0:03:43]} O-O {[%emt 0:01:48]} 8. c5 {[%emt 0:04:25]} Be7 {[%emt 0:00:21]} 9. Bf4 {[%emt 0:01:40]} Bd7 {[%emt 0:05:02]} 10. Rb1 {[%emt 0:04:21]} Be8 {[%emt 0:03:11]} 11. b4 {[%emt 0:03:05]} Ne4 {[%emt 0:02:07]} 12. Qd3 {[%emt 0:02:55]} a5 {[%emt 0:05:41]} 13. bxa5 {[%emt 0:03:53]} Nxc3 {[%emt 0:00:11]} 14. Qxc3 {[%emt 0:00:03]} Nxa5 {[%emt 0:00:07]} 15. Rfc1 {[%emt 0:12:00]} Ra7 {[%emt 0:08:30]} 16. Nd2 {[%emt 0:01:17]} Nc6 {[%emt 0:00:52]} 17. Rb2 {[%emt 0:15:24]} g5 {[%emt 0:02:59]} 18. Be3 {[%emt 0:00:15]} e5 {[%emt 0:03:37]} 19. Nf3 {[%emt 0:02:34]} Ra4 {[%emt 0:01:32]} 20. Qb3 {[%emt 0:06:19]} Nxd4 {[%emt 0:12:21]} 21. Bxd4 {[%emt 0:00:23]} exd4 {[%emt 0:00:25]} 22. Qxb7 {[%emt 0:00:45]} Bf6 {[%emt 0:00:28]} 23. Rb4 {[%emt 0:05:01]} Bc6 {[%emt 0:00:10]} 24. Qxc6 {[%emt 0:00:25]} Rxb4 {[%emt 0:00:02]} 25. Ne1 {[%emt 0:05:35]} Rc4 {[%emt 0:01:03]} 26. Nd3 {[%emt 0:01:21]} Rxc1+ {[%emt 0:01:43]} 27. Nxc1 {[%emt 0:00:04]} Kg7 {[%emt 0:00:26]} 28. Bxd5 {[%emt 0:00:43]} Qb8 {[%emt 0:02:05]} 29. Nb3 {[%emt 0:03:19]} Qe8 {[%emt 0:03:32]} 30. Kf1 {[%emt 0:01:40]} Qxc6 {[%emt 0:00:15]} 31. Bxc6 {[%emt 0:00:04]} Rb8 {[%emt 0:00:11]} 32. Ke1 {[%emt 0:02:09]} Rb4 {[%emt 0:01:57]} 33. Kd2 {[%emt 0:00:50]} Be5 {[%emt 0:03:08]} 34. Kd3 {[%emt 0:01:20]} f5 {[%emt 0:01:25]} 35. h3 {[%emt 0:06:50]} Kf8 {[%emt 0:02:42]} 36. g4 {[%emt 0:01:42]} fxg4 {[%emt 0:02:31]} 37. hxg4 {[%emt 0:00:28]} Ke7 {[%emt 0:02:06]} 38. f3 {[%emt 0:00:25]} Kd8 {[%emt 0:01:24]} 39. Ke4 {[%emt 0:01:18]} Bg7 {[%emt 0:00:32]} 40. Kd5 {[%emt 0:01:01]} d3 {[%emt 0:03:42]} 41. exd3 {[%emt 0:31:22]} Rf4 {[%emt 0:30:02]} 42. d4 {[%emt 0:05:05]} Rxf3 {[%emt 0:00:25]} 43. Kc4 {[%emt 0:01:02]} Rg3 {[%emt 0:01:07]} 44. a4 {[%emt 0:00:20]} Rxg4 {[%emt 0:00:49]} 45. a5 {[%emt 0:00:05]} Kc8 {[%emt 0:00:16]} 46. a6 {[%emt 0:00:34]} Kb8 {[%emt 0:00:17]} 47. Bb7 {[%emt 0:00:13]} c6 {[%emt 0:05:41]} 48. Bxc6 {[%emt 0:00:10]} Rf4 {[%emt 0:02:18]} 49. Bb7 {[%emt 0:02:11]} g4 {[%emt 0:00:23]} 50. Kb5 {[%emt 0:00:26]} Bxd4 {[%emt 0:02:40]} 51. Na5 {[%emt 0:00:00]} Bc3 {[%emt 0:00:00]} 52. Nc4 {[%emt 0:00:00]} Rf1 {[%emt 0:00:00]} 53. Be4 {[%emt 0:00:00]} Re1 {[%emt 0:00:00]} 54. Nd6 {[%emt 0:00:00]} g3 {[%emt 0:00:00]} 55. Bd5 {[%emt 0:00:00]} Rb1+ {[%emt 0:00:00]} 56. Kc6 {[%emt 0:00:00]} Ra1 {[%emt 0:00:00]} 57. Kb6 {[%emt 0:00:00]} Ba5+ {[%emt 0:00:00]} 58. Kb5 {[%emt 0:00:00]} Bc7 {[%emt 0:00:00]} 59. Nc4 {[%emt 0:00:00]} h5 {[%emt 0:00:00]} 60. Nb6 {[%emt 0:00:00]} h4 {[%emt 0:00:00]} 0-1

[Event "44th Chess Olympiad Open 2022"]
[Site "Chennai"]
[Date "2022.08.05"]
[Round "7.38"]
[White "Mushore, Emarald Takudzwa"]
[Black "Barrish, Daniel"]
[Result "0-1"]
[ECO "B90"]
[WhiteElo "2153"]
[BlackElo "2283"]
[Annotator "ChessBase"]
[PlyCount "96"]
[EventDate "2022.07.29"]
[EventType "team-tourn"]
[EventCountry "IND"]
[SourceTitle "playchess.com"]
[Source "ChessBase"]
[SourceQuality "1"]
[WhiteTeam "Zimbabwe"]
[BlackTeam "South Africa"]
[WhiteTeamCountry "ZIM"]
[BlackTeamCountry "RSA"]
[TimeControl "40/5400+30:1800+30"]

1. e4 {[%emt 0:00:05]} c5 {[%emt 0:00:46]} 2. Nf3 {[%emt 0:00:08]} d6 {[%emt 0:00:17]} 3. d4 {[%emt 0:00:07]} cxd4 {[%emt 0:00:06]} 4. Nxd4 {[%emt 0:00:05]} Nf6 {[%emt 0:00:05]} 5. Nc3 {[%emt 0:00:05]} a6 {[%emt 0:00:04]} 6. Be3 {[%emt 0:00:09]} e5 {[%emt 0:00:19]} 7. Nb3 {[%emt 0:00:02]} Be7 {[%emt 0:00:11]} 8. f3 {[%emt 0:00:09]} Be6 {[%emt 0:00:20]} 9. Qd2 {[%emt 0:00:33]} h5 {[%emt 0:00:14]} 10. O-O-O {[%emt 0:00:12]} Nbd7 {[%emt 0:00:26]} 11. Kb1 {[%emt 0:00:17]} Rc8 {[%emt 0:00:15]} 12. Nd5 {[%emt 0:06:30]} Nxd5 {[%emt 0:00:43]} 13. exd5 {[%emt 0:00:09]} Bf5 {[%emt 0:00:11]} 14. Bd3 {[%emt 0:00:20]} Bxd3 {[%emt 0:00:08]} 15. Qxd3 {[%emt 0:00:09]} Bg5 {[%emt 0:00:29]} 16. Rhf1 {[%emt 0:03:25]} Bxe3 {[%emt 0:06:49]} 17. Qxe3 {[%emt 0:00:11]} O-O {[%emt 0:00:53]} 18. f4 {[%emt 0:03:45]} Re8 {[%emt 0:02:06]} 19. Qf3 {[%emt 0:06:54]} Nf6 {[%emt 0:02:17]} 20. h3 {[%emt 0:02:28]} Rc4 {[%emt 0:07:57]} 21. fxe5 {[%emt 0:10:27]} Rxe5 {[%emt 0:00:22]} 22. Nd4 {[%emt 0:15:35]} Rxd5 {[%emt 0:08:22]} 23. Nf5 {[%emt 0:01:08]} Rxd1+ {[%emt 0:01:23]} 24. Rxd1 {[%emt 0:00:19]} d5 {[%emt 0:01:17]} 25. Qg3 {[%emt 0:08:02]} g6 {[%emt 0:01:39]} 26. Qg5 {[%emt 0:01:31]} Re4 {[%emt 0:11:35]} 27. g4 {[%emt 0:03:59]} Re8 {[%emt 0:10:34]} 28. a3 {[%emt 0:15:05]} Nxg4 {[%emt 0:04:11]} 29. Qxd8 {[%emt 0:03:02]} Rxd8 {[%emt 0:00:06]} 30. hxg4 {[%emt 0:00:29]} gxf5 {[%emt 0:00:10]} 31. gxh5 {[%emt 0:00:21]} Kg7 {[%emt 0:00:54]} 32. c4 {[%emt 0:08:10]} d4 {[%emt 0:01:10]} 33. Kc2 {[%emt 0:00:07]} Kh6 {[%emt 0:01:02]} 34. Rf1 {[%emt 0:00:14]} Kg5 {[%emt 0:09:48]} 35. Kd3 {[%emt 0:00:13]} f4 {[%emt 0:01:51]} 36. Rg1+ {[%emt 0:00:33]} Kxh5 {[%emt 0:08:07]} 37. Ke4 {[%emt 0:00:20]} d3 {[%emt 0:02:01]} 38. Kxf4 {[%emt 0:03:17]} d2 {[%emt 0:01:44]} 39. Rd1 {[%emt 0:00:57]} Kg6 {[%emt 0:00:59]} 40. Ke3 {[%emt 0:00:41]} Kf5 {[%emt 0:00:22]} 41. b4 {[%emt 0:31:01]} Ke5 {[%emt 0:30:52]} 42. a4 {[%emt 0:00:51]} f5 {[%emt 0:09:06]} 43. a5 {[%emt 0:02:40]} f4+ {[%emt 0:01:10]} 44. Ke2 {[%emt 0:02:24]} Ke4 {[%emt 0:00:09]} 45. Rxd2 {[%emt 0:00:24]} Rxd2+ {[%emt 0:01:28]} 46. Kxd2 {[%emt 0:00:01]} Kd4 {[%emt 0:00:10]} 47. b5 {[%emt 0:00:55]} Kxc4 {[%emt 0:00:10]} 48. bxa6 {[%emt 0:00:08]} bxa6 {[%emt 0:00:04]} 0-1

[Event "44th Chess Olympiad Open 2022"]
[Site "Chennai"]
[Date "2022.08.05"]
[Round "7.39"]
[White "Zambrana, Osvaldo"]
[Black "Brahami, Lamine"]
[Result "1-0"]
[ECO "B98"]
[WhiteElo "2417"]
[BlackElo "2189"]
[Annotator "ChessBase"]
[PlyCount "61"]
[EventDate "2022.07.29"]
[EventType "team-tourn"]
[EventCountry "IND"]
[SourceTitle "playchess.com"]
[Source "ChessBase"]
[SourceQuality "1"]
[WhiteTeam "Bolivia"]
[BlackTeam "Algeria"]
[WhiteTeamCountry "BOL"]
[BlackTeamCountry "ALG"]
[TimeControl "40/5400+30:1800+30"]

1. e4 {[%emt 0:00:04]} c5 {[%emt 0:00:17]} 2. Nf3 {[%emt 0:00:09]} d6 {[%emt 0:00:20]} 3. d4 {[%emt 0:00:02]} cxd4 {[%emt 0:00:06]} 4. Nxd4 {[%emt 0:00:08]} Nf6 {[%emt 0:00:03]} 5. Nc3 {[%emt 0:00:10]} a6 {[%emt 0:00:08]} 6. Bg5 {[%emt 0:00:05]} e6 {[%emt 0:02:20]} 7. f4 {[%emt 0:00:13]} Be7 {[%emt 0:01:22]} 8. Qe2 {[%emt 0:00:51]} Qb6 {[%emt 0:10:23]} 9. O-O-O {[%emt 0:00:39]} Nc6 {[%emt 0:00:49]} 10. Nf3 {[%emt 0:00:52]} Qc7 {[%emt 0:04:13]} 11. e5 {[%emt 0:03:05]} dxe5 {[%emt 0:02:51]} 12. fxe5 {[%emt 0:03:41]} Nd7 {[%emt 0:06:10]} 13. Bxe7 {[%emt 0:01:21]} Nxe7 {[%emt 0:00:31]} 14. Qd2 {[%emt 0:17:15]} Ng6 {[%emt 0:24:26]} 15. Bb5 {[%emt 0:21:13]} axb5 {[%emt 0:22:57]} 16. Nxb5 {[%emt 0:00:12]} Qc5 {[%emt 0:01:31]} 17. Nd6+ {[%emt 0:00:19]} Kf8 {[%emt 0:05:54]} 18. a3 {[%emt 0:10:50]} f6 {[%emt 0:12:10]} 19. Rhf1 {[%emt 0:01:59]} Ndxe5 {[%emt 0:02:20]} 20. Ne4 {[%emt 0:14:07]} Nxf3 {[%emt 0:01:05]} 21. Qd8+ {[%emt 0:00:46]} Kf7 {[%emt 0:00:05]} 22. Nd6+ {[%emt 0:00:06]} Qxd6 {[%emt 0:00:19]} 23. Qxd6 {[%emt 0:00:03]} Ng5 {[%emt 0:00:59]} 24. Qc7+ {[%emt 0:03:54]} Ne7 {[%emt 0:00:06]} 25. h4 {[%emt 0:00:50]} h6 {[%emt 0:01:04]} 26. hxg5 {[%emt 0:00:11]} hxg5 {[%emt 0:00:01]} 27. Rd8 {[%emt 0:00:27]} Rh4 {[%emt 0:00:25]} 28. Qc5 {[%emt 0:01:41]} Rg4 {[%emt 0:01:00]} 29. Rh1 {[%emt 0:00:01]} b6 {[%emt 0:00:32]} 30. Qb5 {[%emt 0:01:34]} Kg6 {[%emt 0:00:32]} 31. Qe8+ {[%emt 0:00:20]} 1-0

[Event "44th Chess Olympiad Open 2022"]
[Site "Chennai"]
[Date "2022.08.05"]
[Round "7.39"]
[White "Nassr, Ali"]
[Black "Gemy, Jose Daniel"]
[Result "1/2-1/2"]
[ECO "A48"]
[WhiteElo "2263"]
[BlackElo "2373"]
[Annotator "ChessBase"]
[PlyCount "94"]
[EventDate "2022.07.29"]
[EventType "team-tourn"]
[EventCountry "IND"]
[SourceTitle "playchess.com"]
[Source "ChessBase"]
[SourceQuality "1"]
[WhiteTeam "Algeria"]
[BlackTeam "Bolivia"]
[WhiteTeamCountry "ALG"]
[BlackTeamCountry "BOL"]
[TimeControl "40/5400+30:1800+30"]

1. d4 {[%emt 0:00:07]} Nf6 {[%emt 0:00:06]} 2. Nf3 {[%emt 0:00:19]} g6 {[%emt 0:00:09]} 3. Bf4 {[%emt 0:00:51]} Bg7 {[%emt 0:00:05]} 4. e3 {[%emt 0:00:22]} O-O {[%emt 0:00:06]} 5. h3 {[%emt 0:00:34]} d6 {[%emt 0:00:05]} 6. c3 {[%emt 0:01:08]} Nc6 {[%emt 0:00:07]} 7. Be2 {[%emt 0:01:35]} Nd7 {[%emt 0:00:06]} 8. O-O {[%emt 0:02:16]} e5 {[%emt 0:00:10]} 9. Bh2 {[%emt 0:01:28]} f5 {[%emt 0:00:05]} 10. a4 {[%emt 0:01:10]} e4 {[%emt 0:02:50]} 11. Nfd2 {[%emt 0:00:33]} a5 {[%emt 0:00:05]} 12. b4 {[%emt 0:04:10]} g5 {[%emt 0:03:36]} 13. b5 {[%emt 0:03:19]} Ne7 {[%emt 0:00:06]} 14. c4 {[%emt 0:00:48]} Ng6 {[%emt 0:00:49]} 15. Nc3 {[%emt 0:02:18]} Nf6 {[%emt 0:01:14]} 16. Qb3 {[%emt 0:04:32]} Rf7 {[%emt 0:11:18]} 17. Rfd1 {[%emt 0:04:38]} Re7 {[%emt 0:29:52]} 18. b6 {[%emt 0:04:40]} c6 {[%emt 0:17:51]} 19. Bxd6 {[%emt 0:01:09]} Qxd6 {[%emt 0:00:06]} 20. c5+ {[%emt 0:00:03]} Be6 {[%emt 0:00:04]} 21. cxd6 {[%emt 0:00:27]} Bxb3 {[%emt 0:00:07]} 22. Nxb3 {[%emt 0:00:49]} Ree8 {[%emt 0:02:34]} 23. Nc5 {[%emt 0:05:21]} Rab8 {[%emt 0:00:05]} 24. Bc4+ {[%emt 0:00:21]} Kh8 {[%emt 0:00:08]} 25. Be6 {[%emt 0:11:36]} f4 {[%emt 0:06:10]} 26. Bf7 {[%emt 0:04:44]} Rf8 {[%emt 0:03:59]} 27. Bxg6 {[%emt 0:05:19]} hxg6 {[%emt 0:00:05]} 28. exf4 {[%emt 0:00:44]} gxf4 {[%emt 0:00:12]} 29. N3xe4 {[%emt 0:00:28]} Nxe4 {[%emt 0:01:07]} 30. Nxe4 {[%emt 0:00:10]} Rf5 {[%emt 0:00:20]} 31. Rac1 {[%emt 0:05:58]} Rd5 {[%emt 0:00:31]} 32. Rc5 {[%emt 0:01:18]} Rd8 {[%emt 0:01:23]} 33. Rxd5 {[%emt 0:07:43]} cxd5 {[%emt 0:00:07]} 34. Ng5 {[%emt 0:00:13]} Kg8 {[%emt 0:00:27]} 35. Ne6 {[%emt 0:01:27]} Rxd6 {[%emt 0:00:13]} 36. Nxg7 {[%emt 0:00:27]} Kxg7 {[%emt 0:01:59]} 37. Rb1 {[%emt 0:00:16]} Kf6 {[%emt 0:01:56]} 38. Rb5 {[%emt 0:00:48]} Kf5 {[%emt 0:03:42]} 39. Rxa5 {[%emt 0:07:08]} Ke4 {[%emt 0:00:04]} 40. Rb5 {[%emt 0:00:39]} Kxd4 {[%emt 0:00:53]} 41. a5 {[%emt 0:37:40]} Kc4 {[%emt 0:30:59]} 42. Rb1 {[%emt 0:00:03]} Rd8 {[%emt 0:00:11]} 43. Kf1 {[%emt 0:00:47]} Ra8 {[%emt 0:00:39]} 44. Rc1+ {[%emt 0:00:04]} Kd3 {[%emt 0:03:52]} 45. Ra1 {[%emt 0:00:22]} d4 {[%emt 0:01:28]} 46. Ke1 {[%emt 0:06:58]} Kc2 {[%emt 0:01:33]} 47. Ra2+ {[%emt 0:00:37]} Kb3 {[%emt 0:00:20]} 1/2-1/2

[Event "44th Chess Olympiad Open 2022"]
[Site "Chennai"]
[Date "2022.08.05"]
[Round "7.39"]
[White "Bolanos, Fernando"]
[Black "Bengherabi, Khalil"]
[Result "1-0"]
[ECO "B72"]
[WhiteElo "2258"]
[BlackElo "2097"]
[Annotator "ChessBase"]
[PlyCount "73"]
[EventDate "2022.07.29"]
[EventType "team-tourn"]
[EventCountry "IND"]
[SourceTitle "playchess.com"]
[Source "ChessBase"]
[SourceQuality "1"]
[WhiteTeam "Bolivia"]
[BlackTeam "Algeria"]
[WhiteTeamCountry "BOL"]
[BlackTeamCountry "ALG"]
[TimeControl "40/5400+30:1800+30"]

1. e4 {[%emt 0:00:01]} c5 {[%emt 0:00:06]} 2. Nf3 {[%emt 0:00:05]} d6 {[%emt 0:00:05]} 3. d4 {[%emt 0:00:31]} cxd4 {[%emt 0:00:05]} 4. Nxd4 {[%emt 0:00:10]} Nf6 {[%emt 0:00:06]} 5. Nc3 {[%emt 0:00:24]} g6 {[%emt 0:00:04]} 6. Be3 {[%emt 0:01:45]} a6 {[%emt 0:04:02]} 7. f3 {[%emt 0:09:14]} h5 {[%emt 0:00:52]} 8. Bc4 {[%emt 0:00:28]} b5 {[%emt 0:02:39]} 9. Bb3 {[%emt 0:00:33]} Bb7 {[%emt 0:00:05]} 10. O-O {[%emt 0:10:35]} Nbd7 {[%emt 0:06:38]} 11. Qe2 {[%emt 0:16:14]} Bg7 {[%emt 0:03:37]} 12. a4 {[%emt 0:05:16]} b4 {[%emt 0:00:36]} 13. Na2 {[%emt 0:00:16]} e5 {[%emt 0:17:56]} 14. Nc6 {[%emt 0:06:58]} Bxc6 {[%emt 0:09:18]} 15. Qc4 {[%emt 0:00:13]} Bd5 {[%emt 0:13:46]} 16. exd5 {[%emt 0:00:10]} a5 {[%emt 0:00:46]} 17. c3 {[%emt 0:03:28]} bxc3 {[%emt 0:06:30]} 18. Nxc3 {[%emt 0:00:17]} O-O {[%emt 0:07:56]} 19. Qc6 {[%emt 0:07:18]} Qb8 {[%emt 0:17:56]} 20. Nb5 {[%emt 0:05:16]} Rd8 {[%emt 0:02:47]} 21. Rac1 {[%emt 0:16:54]} Bf8 {[%emt 0:01:16]} 22. Qc2 {[%emt 0:05:30]} Qb7 {[%emt 0:03:23]} 23. Qc7 {[%emt 0:01:04]} Qxc7 {[%emt 0:00:50]} 24. Rxc7 {[%emt 0:00:01]} Ne8 {[%emt 0:00:33]} 25. Rc6 {[%emt 0:01:32]} Nc5 {[%emt 0:00:33]} 26. Bxc5 {[%emt 0:04:22]} dxc5 {[%emt 0:00:04]} 27. Re1 {[%emt 0:00:12]} Nd6 {[%emt 0:00:59]} 28. Rxe5 {[%emt 0:01:10]} Nxb5 {[%emt 0:00:24]} 29. axb5 {[%emt 0:00:05]} Bg7 {[%emt 0:00:35]} 30. Re7 {[%emt 0:00:50]} a4 {[%emt 0:00:28]} 31. Ba2 {[%emt 0:01:34]} Re8 {[%emt 0:00:31]} 32. Rxe8+ {[%emt 0:01:58]} Rxe8 {[%emt 0:00:00]} 33. d6 {[%emt 0:00:18]} Bxb2 {[%emt 0:01:02]} 34. d7 {[%emt 0:00:22]} Rd8 {[%emt 0:00:30]} 35. Rc8 {[%emt 0:00:12]} Bf6 {[%emt 0:00:22]} 36. b6 {[%emt 0:00:05]} c4 {[%emt 0:00:37]} 37. b7 {[%emt 0:00:18]} 1-0

[Event "44th Chess Olympiad Open 2022"]
[Site "Chennai"]
[Date "2022.08.05"]
[Round "7.39"]
[White "Djabri, Massinas"]
[Black "Mendoza, Rodrigo"]
[Result "1-0"]
[ECO "E11"]
[WhiteElo "2206"]
[BlackElo "2215"]
[Annotator "NA"]
[PlyCount "51"]
[EventDate "2022.07.29"]
[EventType "team-tourn"]
[EventCountry "IND"]
[SourceTitle "playchess.com"]
[Source "ChessBase"]
[SourceQuality "1"]
[WhiteTeam "Algeria"]
[BlackTeam "Bolivia"]
[WhiteTeamCountry "ALG"]
[BlackTeamCountry "BOL"]
[TimeControl "40/5400+30:1800+30"]

1. d4 {[%emt 0:00:05]} Nf6 {[%emt 0:00:01]} 2. c4 {[%emt 0:00:08]} e6 {[%emt 0:00:03]} 3. Nf3 {[%emt 0:00:07]} Bb4+ {[%emt 0:00:01]} 4. Bd2 {[%emt 0:00:24]} a5 {[%emt 0:00:00]} 5. a3 {[%emt 0:00:25]} Bxd2+ {[%emt 0:00:06]} 6. Qxd2 {[%emt 0:00:05]} b6 {[%emt 0:00:04]} 7. Nc3 {[%emt 0:01:18]} Bb7 {[%emt 0:00:39]} 8. Qf4 {[%emt 0:00:36]} d6 {[%emt 0:09:33]} 9. h4 {[%emt 0:04:05]} Qe7 {[%emt 0:02:31]} 10. e3 {[%emt 0:06:44]} Nbd7 {[%emt 0:08:47]} 11. Be2 {[%emt 0:05:55]} O-O {[%emt 0:01:56]} 12. O-O {[%emt 0:01:27]} Rfe8 {[%emt 0:02:22]} 13. Nd2 {[%emt 0:04:37]} e5 {[%emt 0:06:22]} 14. Qg3 {[%emt 0:03:45]} Nf8 {[%emt 0:06:44]} 15. d5 {[%emt 0:08:33]} Bc8 {[%emt 0:28:22]} 16. b4 {[%emt 0:15:07]} h6 {[%emt 0:04:13]} 17. h5 {[%emt 0:06:11]} e4 {[%emt 0:05:06]} 18. Nb5 {[%emt 0:07:58]} N8h7 {[%emt 0:06:45]} 19. Nb3 {[%emt 0:13:36]} Qd8 {[%emt 0:00:35]} 20. c5 {[%emt 0:05:29]} Re5 {[%emt 0:05:06]} 21. cxd6 {[%emt 0:01:42]} cxd6 {[%emt 0:02:09]} 22. N3d4 {[%emt 0:00:07]} Rxd5 {[%emt 0:03:46]} 23. Bc4 {[%emt 0:00:36]} Nxh5 {[%emt 0:01:36]} 24. Qh2 {[%emt 0:01:15]} Rg5 {[%emt 0:05:07]} 25. Nxd6 {[%emt 0:00:23]} Bh3 {[%emt 0:00:35]} 26. Nxf7 {[%emt 0:00:26]} 1-0

[Event "44th Chess Olympiad Open 2022"]
[Site "Chennai"]
[Date "2022.08.05"]
[Round "7.40"]
[White "Palomo, Franklin Annervys"]
[Black "Ahmad, Al Khatib"]
[Result "0-1"]
[ECO "D39"]
[WhiteElo "2324"]
[BlackElo "2244"]
[Annotator "ChessBase"]
[PlyCount "66"]
[EventDate "2022.07.29"]
[EventType "team-tourn"]
[EventCountry "IND"]
[SourceTitle "playchess.com"]
[Source "ChessBase"]
[SourceQuality "1"]
[WhiteTeam "Venezuela"]
[BlackTeam "Jordan"]
[WhiteTeamCountry "VEN"]
[BlackTeamCountry "JOR"]
[TimeControl "40/5400+30:1800+30"]

1. d4 {[%emt 0:00:10]} d5 {[%emt 0:00:05]} 2. Nf3 {[%emt 0:00:16]} Nf6 {[%emt 0:00:11]} 3. c4 {[%emt 0:01:14]} e6 {[%emt 0:00:06]} 4. Nc3 {[%emt 0:01:04]} Bb4 {[%emt 0:00:10]} 5. Bg5 {[%emt 0:01:20]} dxc4 {[%emt 0:00:52]} 6. Bxf6 {[%emt 0:10:08]} Qxf6 {[%emt 0:00:54]} 7. Qa4+ {[%emt 0:02:04]} Nc6 {[%emt 0:00:30]} 8. a3 {[%emt 0:01:21]} Bxc3+ {[%emt 0:04:14]} 9. bxc3 {[%emt 0:00:10]} O-O {[%emt 0:03:22]} 10. e3 {[%emt 0:06:22]} e5 {[%emt 0:16:32]} 11. Bxc4 {[%emt 0:00:48]} e4 {[%emt 0:14:18]} 12. Nd2 {[%emt 0:03:20]} Qg6 {[%emt 0:00:12]} 13. g3 {[%emt 0:01:32]} Ne7 {[%emt 0:13:09]} 14. Qa5 {[%emt 0:15:24]} Be6 {[%emt 0:13:06]} 15. O-O {[%emt 0:07:05]} Bxc4 {[%emt 0:05:06]} 16. Nxc4 {[%emt 0:03:19]} Qe6 {[%emt 0:00:49]} 17. Nd2 {[%emt 0:00:36]} b6 {[%emt 0:00:46]} 18. Qg5 {[%emt 0:05:50]} f5 {[%emt 0:04:18]} 19. c4 {[%emt 0:07:02]} c5 {[%emt 0:03:27]} 20. dxc5 {[%emt 0:17:51]} bxc5 {[%emt 0:00:16]} 21. Rab1 {[%emt 0:00:10]} Rad8 {[%emt 0:05:10]} 22. Rb7 {[%emt 0:04:31]} Ng6 {[%emt 0:01:37]} 23. Nb3 {[%emt 0:00:00]} Qxc4 {[%emt 0:02:51]} 24. Rc1 {[%emt 0:02:50]} Qe2 {[%emt 0:02:00]} 25. Nd4 {[%emt 0:05:27]} Qa6 {[%emt 0:04:40]} 26. Rxg7+ {[%emt 0:02:02]} Kxg7 {[%emt 0:00:10]} 27. Nxf5+ {[%emt 0:00:03]} Kh8 {[%emt 0:02:24]} 28. g4 {[%emt 0:01:24]} Qe2 {[%emt 0:01:35]} 29. h4 {[%emt 0:00:30]} Rd1+ {[%emt 0:00:27]} 30. Rxd1 {[%emt 0:00:03]} Qxd1+ {[%emt 0:00:02]} 31. Kg2 {[%emt 0:00:21]} Qd8 {[%emt 0:01:38]} 32. Qh6 {[%emt 0:01:20]} Rxf5 {[%emt 0:00:53]} 33. gxf5 {[%emt 0:00:33]} Qxh4 {[%emt 0:00:20]} 0-1